fUSD/lending_fUSD_20240624
["ID","MTS","AMOUNT","RATE_DAILY","PERIOD"]
[330321543,1719258089130,-500.0,0.00043835,120]
[330321544,1719258089161,-500.0,0.00043835,120]
[330321545,1719258089192,-1170.87,0.00043835,120]
[330321546,1719258089224,-500.0,0.00043835,120]
[330321547,1719258089255,-500.0,0.00043835,120]
[330321548,1719258089290,-500.0,0.00043835,120]
[330321549,1719258089322,-1969.8,0.00043835,120]
[330321550,1719258089356,-500.0,0.00043835,120]
[330321551,1719258089387,-500.0,0.00043835,120]
[330321552,1719258089417,-500.0,0.00043835,120]
[330321553,1719258089448,-500.0,0.00043835,120]
[330321554,1719258089478,-500.0,0.00043835,120]
[330321555,1719258089509,-1694.12,0.00043835,120]
[330321556,1719258089558,-824.95,0.00043835,120]
[330321557,1719258089615,-500.0,0.00043835,120]
[330321558,1719258089673,-553.17,0.00043835,120]
[330321559,1719258089721,-1391.43,0.00043835,120]
[330321560,1719258089773,-500.0,0.00043835,120]
[330321561,1719258089819,-500.0,0.00043835,120]
[330321562,1719258089863,-619.57,0.00043835,120]
[330321563,1719258089908,-1172.25,0.00043835,120]
[330321564,1719258089953,-500.0,0.00043835,120]
[330321565,1719258089997,-500.0,0.00043835,120]
[330321566,1719258090042,-571.93,0.00043835,120]
[330321567,1719258090088,-500.0,0.00043835,120]
[330321568,1719258090134,-675.94,0.00043835,120]
[330321569,1719258090182,-500.0,0.00043835,120]
[330321570,1719258090226,-819.57,0.00043835,120]
[330321571,1719258090269,-500.0,0.00043835,120]
[330321572,1719258090313,-1195.67,0.00043835,120]
[330321573,1719258090360,-500.0,0.00043835,120]
[330321574,1719258090406,-500.0,0.00043835,120]
[330321575,1719258090451,-500.0,0.00043835,120]
[330321576,1719258090494,-500.0,0.00043835,120]
[330321577,1719258090538,-500.0,0.00043835,120]
[330321578,1719258090585,-500.0,0.00043835,120]
[330321579,1719258090634,-500.0,0.00043835,120]
[330321580,1719258090682,-667.67,0.00043835,120]
[330321581,1719258090726,-804.5,0.00043835,120]
[330321582,1719258090771,-500.0,0.00043835,120]
[330321583,1719258090814,-500.0,0.00043835,120]
[330321584,1719258090860,-500.0,0.00043835,120]
[330321585,1719258090905,-500.0,0.00043835,120]
[330321586,1719258090951,-500.0,0.00043835,120]
[330321587,1719258090997,-500.0,0.00043835,120]
[330321588,1719258091043,-1165.11,0.00043835,120]
[330321589,1719258091091,-510.84866096,0.00043835,120]
[330321590,1719258091138,-500.0,0.00043835,120]
[330321591,1719258091182,-500.0,0.00043835,120]
[330321592,1719258091229,-500.0,0.00043835,120]
[330321593,1719258091475,-500.0,0.00043835,120]
[330321594,1719258091518,-500.0,0.00043835,120]
[330321595,1719258091548,-500.0,0.00043835,120]
[330321596,1719258091584,-506.71792103,0.00043835,120]
[330321597,1719258091615,-500.0,0.00043835,120]
[330321598,1719258091649,-1099.82,0.00043835,120]
[330321599,1719258091682,-533.46193,0.00043835,120]
[330321600,1719258091714,-500.0,0.00043835,120]
[330321601,1719258091748,-816.17,0.00043835,120]
[330321602,1719258091780,-500.0,0.00043835,120]
[330321603,1719258091811,-500.0,0.00043835,120]
[330321604,1719258091842,-500.0,0.00043835,120]
[330321605,1719258091876,-500.0,0.00043835,120]
[330321606,1719258091905,-506.70918247,0.00043835,120]
[330321607,1719258091937,-500.0,0.00043835,120]
[330321608,1719258091969,-500.0,0.00043835,120]
[330321609,1719258091999,-500.0,0.00043835,120]
[330321610,1719258092032,-500.0,0.00043835,120]
[330321611,1719258092065,-627.61,0.00043835,120]
[330321612,1719258092096,-500.0,0.00043835,120]
[330321613,1719258092130,-500.0,0.00043835,120]
[330321614,1719258092161,-500.0,0.00043835,120]
[330321615,1719258092192,-1399.72,0.00043835,120]
[330321616,1719258092222,-1021.58,0.00043835,120]
[330321617,1719258092253,-500.0,0.00043835,120]
[330321618,1719258092283,-1516.79,0.00043835,120]
[330321619,1719258092313,-500.0,0.00043835,120]
[330321620,1719258092345,-500.0,0.00043835,120]
[330321621,1719258092380,-500.0,0.00043835,120]
[330321622,1719258092411,-500.0,0.00043835,120]
[330321623,1719258092442,-200.0,0.00043835,120]
[330321624,1719258092477,-500.0,0.00043835,120]
[330321625,1719258092508,-500.0,0.00043835,120]
[330321626,1719258092539,-499.25719064,0.00043835,120]
[330321627,1719258092572,-1562.7,0.00043835,120]
[330321628,1719258092609,-1038.38,0.00043835,120]
[330321629,1719258092640,-500.0,0.00043835,120]
[330321630,1719258092672,-500.0,0.00043835,120]
[330321631,1719258092704,-500.0,0.00043835,120]
[330321632,1719258092736,-500.0,0.00043835,120]
[330321633,1719258092766,-500.0,0.00043835,120]
[330321634,1719258092796,-500.0,0.00043835,120]
[330321635,1719258092825,-2386.52,0.00043835,120]
[330321636,1719258092859,-500.0,0.00043835,120]
[330321637,1719258092889,-543.85984677,0.00043835,120]
[330321638,1719258092920,-500.0,0.00043835,120]
[330321639,1719258092951,-500.0,0.00043835,120]
[330321640,1719258092982,-651.41,0.00043835,120]
[330321641,1719258093012,-608.59196294,0.00043835,120]
[330321642,1719258093043,-531.38,0.00043835,120]
[330321643,1719258093077,-500.0,0.00043835,120]
[330321644,1719258093110,-1212.63,0.00043835,120]
[330321645,1719258093141,-500.0,0.00043835,120]
[330321646,1719258093173,-500.0,0.00043835,120]
[330321647,1719258093202,-500.0,0.00043835,120]
[330321648,1719258093233,-500.0,0.00043835,120]
[330321649,1719258093265,-500.0,0.00043835,120]
[330321650,1719258093296,-508.43,0.00043835,120]
[330321651,1719258093326,-500.0,0.00043835,120]
[330321652,1719258093357,-500.0,0.00043835,120]
[330321653,1719258093389,-500.0,0.00043835,120]
[330321654,1719258093421,-500.0,0.00043835,120]
[330321655,1719258093453,-500.0,0.00043835,120]
[330321656,1719258093484,-500.0,0.00043835,120]
[330321657,1719258093517,-560.91512831,0.00043835,120]
[330321658,1719258093548,-500.0,0.00043835,120]
[330321659,1719258093583,-500.0,0.00043835,120]
[330321660,1719258093615,-932.91,0.00043835,120]
[330321661,1719258093648,-500.0,0.00043835,120]
[330321662,1719258093680,-500.0,0.00043835,120]
[330321663,1719258093710,-500.0,0.00043835,120]
[330321664,1719258093741,-500.0,0.00043835,120]
[330321665,1719258093772,-500.0,0.00043835,120]
[330321666,1719258093803,-500.0,0.00043835,120]
[330321667,1719258093835,-500.0,0.00043835,120]
[330321668,1719258093865,-500.0,0.00043835,120]
[330321669,1719258093895,-500.0,0.00043835,120]
[330321670,1719258093925,-500.0,0.00043835,120]
[330321671,1719258093959,-529.95771635,0.00043835,120]
[330321672,1719258094132,-500.0,0.00043835,120]
[330321673,1719258094167,-500.0,0.00043835,120]
[330321674,1719258094197,-500.0,0.00043835,120]
[330321675,1719258094226,-500.0,0.00043835,120]
[330321676,1719258094255,-500.0,0.00043835,120]
[330321677,1719258094285,-559.4198605,0.00043835,120]
[330321678,1719258094315,-500.0,0.00043835,120]
[330321679,1719258094345,-500.0,0.00043835,120]
[330321680,1719258094377,-500.0,0.00043835,120]
[330321681,1719258094407,-500.0,0.00043835,120]
[330321682,1719258094439,-500.0,0.00043835,120]
[330321683,1719258094475,-500.0,0.00043835,120]
[330321684,1719258094511,-500.0,0.00043835,120]
[330321685,1719258094545,-500.0,0.00043835,120]
[330321686,1719258094580,-500.0,0.00043835,120]
[330321687,1719258094617,-500.0,0.00043835,120]
[330321688,1719258094653,-500.0,0.00043835,120]
[330321689,1719258094690,-500.0,0.00043835,120]
[330321690,1719258094724,-290.26263653,0.00043835,120]
[330321691,1719258094754,-500.0,0.00043835,120]
[330321692,1719258094785,-500.0,0.00043835,120]
[330321693,1719258094816,-500.0,0.00043835,120]
[330321694,1719258094846,-500.0,0.00043835,120]
[330321695,1719258094884,-844.64,0.00043835,120]
[330321696,1719258094914,-506.19,0.00043835,120]
[330321697,1719258094946,-500.0,0.00043835,120]
[330321698,1719258094977,-660.39,0.00043835,120]
[330321699,1719258095008,-500.0,0.00043835,120]
[330321700,1719258095040,-500.0,0.00043835,120]
[330321701,1719258095074,-500.83,0.00043835,120]
[330321702,1719258095106,-682.01,0.00043835,120]
[330321703,1719258095136,-500.0,0.00043835,120]
[330321704,1719258095165,-2912.3,0.00043835,120]
[330321705,1719258095195,-514.0921319,0.00043835,120]
[330321706,1719258095226,-2243.25,0.00043835,120]
[330321707,1719258095256,-500.0,0.00043835,120]
[330321708,1719258095288,-763.57,0.00043835,120]
[330321709,1719258095321,-580.26,0.00043835,120]
[330321710,1719258095352,-500.0,0.00043835,120]
[330321711,1719258095387,-335.62674507,0.00043835,120]
[330321712,1719258095418,-500.0,0.00043835,120]
[330321713,1719258095448,-500.0,0.00043835,120]
[330321714,1719258095478,-500.0,0.00043835,120]
[330321715,1719258095508,-500.0,0.00043835,120]
[330321716,1719258095539,-1080.37,0.00043835,120]
[330321717,1719258095570,-500.0,0.00043835,120]
[330321718,1719258095610,-500.0,0.00043835,120]
[330321719,1719258095642,-500.0,0.00043835,120]
[330321720,1719258095674,-500.0,0.00043835,120]
[330321721,1719258095704,-579.59,0.00043835,120]
[330321722,1719258095735,-775.89,0.00043835,120]
[330321723,1719258095765,-712.8,0.00043835,120]
[330321724,1719258095798,-500.0,0.00043835,120]
[330321725,1719258095830,-500.0,0.00043835,120]
[330321726,1719258095863,-5365.49,0.00043835,120]
[330321727,1719258095892,-500.0,0.00043835,120]
[330321728,1719258095921,-500.0,0.00043835,120]
[330321729,1719258095950,-196.92511603,0.00043835,120]
[330321730,1719258095981,-500.0,0.00043835,120]
[330321731,1719258096012,-500.0,0.00043835,120]
[330321732,1719258096046,-2552.8,0.00043835,120]
[330321733,1719258096078,-500.0,0.00043835,120]
[330321734,1719258096112,-500.0,0.00043835,120]
[330321735,1719258096142,-615.51,0.00043835,120]
[330321736,1719258096174,-222.43312194,0.00043835,120]
[330321737,1719258096205,-500.0,0.00043835,120]
[330321738,1719258096236,-500.0,0.00043835,120]
[330321739,1719258096265,-500.0,0.00043835,120]
[330321740,1719258096295,-500.0,0.00043835,120]
[330321741,1719258096324,-500.0,0.00043835,120]
[330321742,1719258096354,-542.22,0.00043835,120]
[330321743,1719258096388,-500.0,0.00043835,120]
[330321744,1719258096421,-709.83,0.00043835,120]
[330321745,1719258096450,-519.03751553,0.00043835,120]
[330321746,1719258096480,-500.0,0.00043835,120]
[330321747,1719258096630,-11543.8,0.00043835,120]
[330321748,1719258096685,-892.32,0.00043835,120]
[330321749,1719258096718,-500.0,0.00043835,120]
[330321750,1719258096750,-9048.79,0.00043835,120]
[330321751,1719258096781,-500.0,0.00043835,120]
[330321752,1719258096813,-528.23493229,0.00043835,120]
[330321753,1719258096843,-500.0,0.00043835,120]
[330321754,1719258096876,-532.87231569,0.00043835,120]
[330321755,1719258096908,-500.0,0.00043835,120]
[330321756,1719258096939,-816.66,0.00043835,120]
[330321757,1719258096969,-500.0,0.00043835,120]
[330321758,1719258097000,-2290.5,0.00043835,120]
[330321759,1719258097032,-500.0,0.00043835,120]
[330321760,1719258097062,-639.14,0.00043835,120]
[330321761,1719258097092,-2517.72,0.00043835,120]
[330321762,1719258097122,-415.46214484,0.00043835,120]
[330321763,1719258097158,-500.0,0.00043835,120]
[330321764,1719258097190,-767.44,0.00043835,120]
[330321765,1719258097222,-500.0,0.00043835,120]
[330321766,1719258097258,-500.0,0.00043835,120]
[330321767,1719258097292,-500.0,0.00043835,120]
[330321768,1719258097328,-500.0,0.00043835,120]
[330321769,1719258097368,-500.0,0.00043835,120]
[330321770,1719258097403,-500.0,0.00043835,120]
[330321771,1719258097433,-847.35,0.00043835,120]
[330321772,1719258097463,-500.0,0.00043835,120]
[330321773,1719258097494,-500.0,0.00043835,120]
[330321774,1719258097524,-500.0,0.00043835,120]
[330321775,1719258097556,-500.0,0.00043835,120]
[330321776,1719258097589,-1992.92,0.00043835,120]
[330321777,1719258097624,-500.0,0.00043835,120]
[330321778,1719258097659,-4168.65,0.00043835,120]
[330321779,1719258097694,-500.0,0.00043835,120]
[330321780,1719258097726,-586.2,0.00043835,120]
[330321781,1719258097757,-500.0,0.00043835,120]
[330321782,1719258097789,-500.0,0.00043835,120]
[330321783,1719258097819,-500.0,0.00043835,120]
[330321784,1719258097850,-500.0,0.00043835,120]
[330321785,1719258097888,-530.66783031,0.00043835,120]
[330321786,1719258097920,-14509.09,0.00043835,120]
[330321787,1719258097951,-500.0,0.00043835,120]
[330321788,1719258097982,-500.0,0.00043835,120]
[330321789,1719258098012,-500.0,0.00043835,120]
[330321790,1719258098044,-500.0,0.00043835,120]
[330321791,1719258098077,-500.0,0.00043835,120]
[330321792,1719258098113,-500.0,0.00043835,120]
[330321793,1719258098145,-500.0,0.00043835,120]
[330321794,1719258098176,-500.0,0.00043835,120]
[330321795,1719258098206,-500.0,0.00043835,120]
[330321796,1719258098236,-2837.68,0.00043835,120]
[330321797,1719258098267,-709.46,0.00043835,120]
[330321798,1719258098298,-1268.79,0.00043835,120]
[330321799,1719258098328,-611.14,0.00043835,120]
[330321800,1719258098360,-500.0,0.00043835,120]
[330321801,1719258098390,-500.0,0.00043835,120]
[330321802,1719258098419,-502.57585058,0.00043835,120]
[330321803,1719258098449,-500.0,0.00043835,120]
[330321804,1719258098479,-484.53849766,0.00043835,120]
[330321805,1719258098509,-500.0,0.00043835,30]
[330321806,1719258098540,-552.99117549,0.00043835,120]
[330321807,1719258098570,-510.53,0.00043835,120]
[330321808,1719258098601,-500.0,0.00043835,120]
[330321809,1719258098633,-500.0,0.00043835,120]
[330321810,1719258098663,-995.0,0.00043835,120]
[330321811,1719258098699,-500.0,0.00043835,120]
[330321812,1719258098732,-1398.2,0.00043835,120]
[330321813,1719258098762,-623.96,0.00043835,120]
[330321814,1719258098793,-367.31718525,0.00043835,120]
[330321815,1719258098823,-500.0,0.00043835,120]
[330321816,1719258098857,-515.43,0.00043835,120]
[330321817,1719258098891,-811.57,0.00043835,120]
[330321818,1719258098924,-514.90674691,0.00043835,120]
[330321819,1719258098959,-500.0,0.00043835,120]
[330321820,1719258098993,-500.0,0.00043835,120]
[330321821,1719258099028,-6890.1,0.00043835,120]
[330321822,1719258099061,-500.0,0.00043835,120]
[330321823,1719258099096,-500.0,0.00043835,120]
[330321824,1719258099132,-500.0,0.00043835,120]
[330321825,1719258099164,-500.0,0.00043835,120]
[330321826,1719258099350,-604.21242996,0.00043835,120]
[330321827,1719258099385,-500.0,0.00043835,120]
[330321828,1719258099418,-500.0,0.00043835,120]
[330321829,1719258099454,-500.0,0.00043835,120]
[330321830,1719258099485,-500.0,0.00043835,120]
[330321831,1719258099518,-500.0,0.00043835,120]
[330321832,1719258099552,-500.0,0.00043835,120]
[330321833,1719258099586,-500.0,0.00043835,120]
[330321834,1719258099620,-960.39,0.00043835,120]
[330321835,1719258099652,-500.0,0.00043835,120]
[330321836,1719258099688,-500.0,0.00043835,120]
[330321837,1719258099721,-669.18,0.00043835,120]
[330321838,1719258099751,-3969.48,0.00043835,120]
[330321839,1719258099782,-500.0,0.00043835,120]
[330321840,1719258099813,-500.0,0.00043835,120]
[330321841,1719258099843,-500.0,0.00043835,120]
[330321842,1719258099877,-1311.04,0.00043835,120]
[330321843,1719258099909,-500.0,0.00043835,120]
[330321844,1719258099942,-500.0,0.00043835,120]
[330321845,1719258099974,-500.0,0.00043835,120]
[330321846,1719258100005,-500.0,0.00043835,120]
[330321847,1719258100038,-500.0,0.00043835,120]
[330321848,1719258100071,-500.0,0.00043835,120]
[330321849,1719258100102,-6812.46,0.00043835,120]
[330321850,1719258100137,-21055.29,0.00043835,120]
[330321851,1719258100168,-500.0,0.00043835,120]
[330321852,1719258100199,-4879.12,0.00043835,120]
[330321853,1719258100229,-500.0,0.00043835,120]
[330321854,1719258100260,-500.0,0.00043835,120]
[330321855,1719258100293,-500.0,0.00043835,120]
[330321856,1719258100325,-1621.33,0.00043835,120]
[330321857,1719258100356,-500.0,0.00043835,120]
[330321858,1719258100389,-500.0,0.00043835,120]
[330321859,1719258100420,-500.0,0.00043835,120]
[330321860,1719258100452,-500.0,0.00043835,120]
[330321861,1719258100484,-500.0,0.00043835,120]
[330321862,1719258100515,-605.67730229,0.00043835,120]
[330321863,1719258100548,-639.21,0.00043835,120]
[330321864,1719258100580,-10451.51,0.00043835,120]
[330321865,1719258100620,-608.31,0.00043835,120]
[330321866,1719258100657,-500.0,0.00043835,120]
[330321867,1719258100690,-500.0,0.00043835,120]
[330321868,1719258100723,-6648.02,0.00043835,120]
[330321869,1719258100754,-500.0,0.00043835,120]
[330321870,1719258100784,-500.0,0.00043835,120]
[330321871,1719258100817,-500.0,0.00043835,120]
[330321872,1719258100849,-511.29,0.00043835,120]
[330321873,1719258100883,-5716.84,0.00043835,120]
[330321874,1719258100915,-500.0,0.00043835,120]
[330321875,1719258100946,-306.14978182,0.00043835,120]
[330321876,1719258100978,-1932.92,0.00043835,120]
[330321877,1719258101009,-603.28,0.00043835,120]
[330321878,1719258101041,-500.0,0.00043835,120]
[330321879,1719258101076,-542.44,0.00043835,120]
[330321880,1719258101109,-500.0,0.00043835,120]
[330321881,1719258101143,-622.19698981,0.00043835,120]
[330321882,1719258101175,-500.0,0.00043835,120]
[330321883,1719258101208,-500.0,0.00043835,120]
[330321884,1719258101242,-500.0,0.00043835,120]
[330321885,1719258101276,-500.0,0.00043835,120]
[330321886,1719258101321,-500.0,0.00043835,120]
[330321887,1719258101357,-500.0,0.00043835,120]
[330321888,1719258101398,-500.0,0.00043835,120]
[330321889,1719258101435,-500.0,0.00043835,120]
[330321890,1719258101473,-500.0,0.00043835,120]
[330321891,1719258101507,-500.0,0.00043835,120]
[330321892,1719258101541,-500.0,0.00043835,120]
[330321893,1719258101575,-15238.7,0.00043835,120]
[330321894,1719258101616,-367.90867726,0.00043835,120]
[330321895,1719258101652,-500.0,0.00043835,120]
[330321896,1719258101687,-500.0,0.00043835,120]
[330321897,1719258101721,-808.0,0.00043835,120]
[330321898,1719258101753,-505.03399199,0.00043835,120]
[330321899,1719258101785,-500.0,0.00043835,120]
[330321900,1719258101816,-500.0,0.00043835,120]
[330321901,1719258101854,-9211.6,0.00043835,120]
[330321902,1719258101890,-500.0,0.00043835,120]
[330321903,1719258101929,-500.0,0.00043835,120]
[330321904,1719258101964,-500.0,0.00043835,120]
[330321905,1719258101998,-209.05,0.00043835,120]
[330321906,1719258102031,-500.0,0.00043835,120]
[330321907,1719258102067,-11837.0,0.00043835,120]
[330321908,1719258102100,-745.89,0.00043835,120]
[330321909,1719258102134,-16339.78,0.00043835,120]
[330321910,1719258102166,-500.0,0.00043835,120]
[330321911,1719258102200,-500.0,0.00043835,120]
[330321912,1719258102232,-990.35,0.00043835,120]
[330321913,1719258102271,-500.0,0.00043835,120]
[330321914,1719258102306,-500.0,0.00043835,120]
[330321915,1719258102339,-500.0,0.00043835,120]
[330321916,1719258102375,-500.0,0.00043835,120]
[330321917,1719258102414,-500.0,0.00043835,120]
[330321918,1719258102446,-500.0,0.00043835,120]
[330321919,1719258102479,-500.0,0.00043835,120]
[330321920,1719258102512,-500.0,0.00043835,120]
[330321921,1719258102545,-6686.2,0.00043835,120]
[330321922,1719258102582,-507.02250064,0.00043835,120]
[330321923,1719258102623,-722.46,0.00043835,120]
[330321924,1719258102660,-1290.82,0.00043835,120]
[330321925,1719258102695,-8106.12,0.00043835,120]
[330321926,1719258102730,-11637.84,0.00043835,120]
[330321927,1719258102764,-500.0,0.00043835,120]
[330321928,1719258102797,-1923.93,0.00043835,120]
[330321929,1719258102830,-500.0,0.00043835,120]
[330321930,1719258103130,-500.75259767,0.00043835,120]
[330321931,1719258103167,-1160.71,0.00043835,120]
[330321932,1719258103201,-954.57,0.00043835,120]
[330321933,1719258103235,-500.0,0.00043835,120]
[330321934,1719258103268,-1238.72,0.00043835,120]
[330321935,1719258103300,-500.0,0.00043835,120]
[330321936,1719258103332,-500.0,0.00043835,120]
[330321937,1719258103368,-500.0,0.00043835,120]
[330321938,1719258103402,-501.37824318,0.00043835,120]
[330321939,1719258103437,-500.0,0.00043835,120]
[330321940,1719258103470,-500.0,0.00043835,120]
[330321941,1719258103504,-517.49,0.00043835,120]
[330321942,1719258103543,-500.0,0.00043835,120]
[330321943,1719258103577,-1229.16,0.00043835,120]
[330321944,1719258103611,-500.0,0.00043835,120]
[330321945,1719258103649,-501.29,0.00043835,120]
[330321946,1719258103681,-500.0,0.00043835,120]
[330321947,1719258103728,-500.0,0.00043835,120]
[330321948,1719258103764,-680.6,0.00043835,120]
[330321949,1719258103799,-500.0,0.00043835,120]
[330321950,1719258103833,-1518.93,0.00043835,120]
[330321951,1719258103868,-500.0,0.00043835,120]
[330321952,1719258103902,-500.0,0.00043835,120]
[330321953,1719258103937,-221.87492993,0.00043835,120]
[330321954,1719258103971,-660.18,0.00043835,120]
[330321955,1719258104004,-500.0,0.00043835,120]
[330321956,1719258104039,-734.75,0.00043835,120]
[330321957,1719258104072,-500.0,0.00043835,120]
[330321958,1719258104106,-500.0,0.00043835,120]
[330321959,1719258104141,-501.81681377,0.00043835,120]
[330321960,1719258104173,-500.0,0.00043835,120]
[330321961,1719258104206,-1152.05,0.00043835,120]
[330321962,1719258104239,-909.58,0.00043835,120]
[330321963,1719258104272,-537.71,0.00043835,120]
[330321964,1719258104306,-500.0,0.00043835,120]
[330321965,1719258104341,-500.0,0.00043835,120]
[330321966,1719258104374,-500.0,0.00043835,120]
[330321967,1719258104407,-1000.0,0.00043835,120]
[330321968,1719258104437,-500.0,0.00043835,120]
[330321969,1719258104468,-7186.7,0.00043835,120]
[330321970,1719258104499,-500.0,0.00043835,120]
[330321971,1719258104537,-8684.9,0.00043835,120]
[330321972,1719258104571,-622.96,0.00043835,120]
[330321973,1719258104609,-500.0,0.00043835,120]
[330321974,1719258104648,-500.0,0.00043835,120]
[330321975,1719258104679,-1089.47,0.00043835,120]
[330321976,1719258104713,-562.13,0.00043835,120]
[330321977,1719258104744,-6508.15,0.00043835,120]
[330321978,1719258104777,-500.0,0.00043835,120]
[330321979,1719258104810,-500.0,0.00043835,120]
[330321980,1719258104843,-500.0,0.00043835,120]
[330321981,1719258104876,-500.0,0.00043835,120]
[330321982,1719258104910,-500.0,0.00043835,120]
[330321983,1719258104942,-500.0,0.00043835,120]
[330321984,1719258104975,-2000.0,0.00043835,120]
[330321985,1719258105008,-500.0,0.00043835,120]
[330321986,1719258105042,-500.0,0.00043835,120]
[330321987,1719258105076,-500.0,0.00043835,120]
[330321988,1719258105110,-594.01,0.00043835,120]
[330321989,1719258105147,-500.0,0.00043835,120]
[330321990,1719258105180,-500.0,0.00043835,120]
[330321991,1719258105213,-596.12,0.00043835,30]
[330321992,1719258105244,-525.93033776,0.00043835,120]
[330321993,1719258105276,-1366.65,0.00043835,120]
[330321994,1719258105311,-532.81,0.00043835,120]
[330321995,1719258105345,-4072.65,0.00043835,120]
[330321996,1719258105379,-4424.98,0.00043835,120]
[330321997,1719258105416,-500.0,0.00043835,120]
[330321998,1719258105449,-3276.93,0.00043835,120]
[330321999,1719258105480,-500.0,0.00043835,120]
[330322000,1719258105511,-500.0,0.00043835,120]
[330322001,1719258105543,-500.0,0.00043835,120]
[330322002,1719258105575,-4229.0,0.00043835,120]
[330322003,1719258105606,-444.54238669,0.00043835,120]
[330322004,1719258105643,-2670.65,0.00043835,120]
[330322005,1719258105676,-2835.37,0.00043835,120]
[330322006,1719258105709,-575.65,0.00043835,120]
[330322007,1719258105740,-500.0,0.00043835,120]
[330322008,1719258105770,-500.0,0.00043835,120]
[330322009,1719258105801,-1295.69,0.00043835,120]
[330322010,1719258105832,-500.0,0.00043835,120]
[330322011,1719258105863,-1533.9,0.00043835,120]
[330322012,1719258105902,-500.0,0.00043835,120]
[330322013,1719258105933,-1514.95,0.00043835,120]
[330322014,1719258105963,-500.0,0.00043835,120]
[330322015,1719258105993,-500.0,0.00043835,120]
[330322016,1719258106025,-500.0,0.00043835,120]
[330322017,1719258106074,-5760.53,0.00043835,120]
[330322018,1719258106104,-500.0,0.00043835,120]
[330322019,1719258106139,-21952.63,0.00043835,120]
[330322020,1719258106169,-500.0,0.00043835,120]
[330322021,1719258106200,-1496.26,0.00043835,120]
[330322022,1719258106230,-833.92,0.00043835,120]
[330322023,1719258106261,-500.0,0.00043835,120]
[330322024,1719258106291,-1709.42,0.00043835,120]
[330322025,1719258106324,-1063.0,0.00043835,120]
[330322026,1719258106356,-4392.25,0.00043835,120]
[330322027,1719258106395,-1353.45,0.00043835,120]
[330322028,1719258106432,-500.0,0.00043835,120]
[330322029,1719258106463,-500.0,0.00043835,120]
[330322030,1719258106494,-1164.26,0.00043835,120]
[330322031,1719258106526,-15843.25,0.00043835,120]
[330322032,1719258106559,-599.03,0.00043835,120]
[330322033,1719258106591,-5342.0,0.00043835,120]
[330322034,1719258106627,-500.0,0.00043835,90]
[330322035,1719258106861,-500.0,0.00043835,120]
[330322036,1719258106894,-500.0,0.00043835,120]
[330322037,1719258106927,-500.0,0.00043835,120]
[330322038,1719258106962,-3528.99,0.00043835,120]
[330322039,1719258106995,-500.0,0.00043835,120]
[330322040,1719258107027,-500.0,0.00043835,120]
[330322041,1719258107061,-500.0,0.00043835,120]
[330322042,1719258107094,-3948.04,0.00043835,120]